bitfinex/quotes_BTCUSD_20250213
["timestamp","ask_amount","ask_price","bid_price","bid_amount"]
[1739423918241,0.305314,96578.0,96577.0,2.19050355]
[1739423918391,0.306314,96578.0,96577.0,2.19750355]
[1739423918597,0.43181765,96578.0,96577.0,1.91100055]
[1739423918799,0.43792611,96578.0,96577.0,1.53400055]
[1739423922968,0.43792611,96578.0,96577.0,3.43859755]
[1739423923188,0.43692611,96578.0,96577.0,3.05175255]
[1739423923388,0.43692611,96578.0,96577.0,2.95829855]
[1739423923603,0.43692611,96578.0,96577.0,2.85016055]
[1739423924605,0.43692611,96578.0,96577.0,2.85116055]
[1739423925719,0.43692611,96578.0,96577.0,2.69636055]
[1739423927390,0.31142246,96578.0,96577.0,2.69636055]
[1739423928368,0.31142246,96578.0,96577.0,2.66290355]
[1739423928774,0.31142246,96578.0,96577.0,2.58612055]
[1739423936595,0.31142246,96578.0,96577.0,0.01276455]
[1739423936922,0.31142246,96578.0,96577.0,3.27579755]
[1739423937148,0.305314,96578.0,96577.0,3.27579755]
[1739423937353,0.155314,96578.0,96577.0,3.27579755]
[1739423938181,0.155314,96578.0,96577.0,3.35309755]
[1739423945773,0.155314,96578.0,96577.0,3.34277471]
[1739423947552,0.155314,96578.0,96577.0,3.07172271]
[1739423947768,0.155314,96578.0,96577.0,2.96810371]
[1739423947983,0.155314,96578.0,96577.0,2.79555271]
[1739423948379,0.00022408,96608.0,96577.0,2.79555271]
[1739423948587,0.14379016,96590.0,96579.0,0.0755]
[1739423948815,0.155302,96586.0,96585.0,0.0755]
[1739423948973,0.155302,96586.0,96585.0,3.338533]
[1739423949602,0.1553,96588.0,96585.0,3.338533]
[1739423949804,0.14379016,96600.0,96589.0,0.1]
[1739423950009,0.14379016,96600.0,96590.0,3.263033]
[1739423950211,0.155293,96591.0,96590.0,3.263033]
[1739423950407,0.155293,96591.0,96590.0,3.338533]
[1739423950870,0.155292,96592.0,96590.0,3.338533]
[1739423951037,0.155292,96592.0,96591.0,3.263033]
[1739423951715,0.35080816,96610.0,96599.0,0.1]
[1739423951934,0.207024,96607.0,96600.0,3.386033]
[1739423952222,0.155269,96606.0,96601.0,3.263033]
[1739423952337,0.00022387,96609.0,96602.0,0.0777]
[1739423952568,0.155273,96604.0,96603.0,3.263033]
[1739423952791,0.155273,96604.0,96603.0,4.763033]
[1739423952986,0.155273,96604.0,96603.0,4.469711]
[1739423953221,0.155273,96604.0,96603.0,4.366367]
[1739423954762,0.155273,96604.0,96603.0,4.368367]
[1739423954973,0.156273,96604.0,96603.0,4.371367]
[1739423955412,0.156273,96604.0,96603.0,1.508]
[1739423955609,0.001,96604.0,96603.0,4.771033]
[1739423955745,0.0049828,96604.0,96603.0,4.612252]
[1739423955956,0.00022366,96607.0,96606.0,0.1]
[1739423956162,0.00022366,96607.0,96606.0,3.446233]
[1739423957293,0.00035606,96607.0,96606.0,3.446233]
[1739423957761,0.00035606,96607.0,96606.0,3.649102]
[1739423957992,0.00035606,96607.0,96606.0,3.75460565]
[1739423958236,0.00035606,96607.0,96606.0,3.75660565]
[1739423958463,0.00035606,96607.0,96606.0,5.11789165]
[1739423958666,0.00035606,96607.0,96606.0,4.88048065]
[1739423958876,0.00135606,96607.0,96606.0,4.81980765]
[1739423959197,0.00235606,96607.0,96606.0,4.82580765]
[1739423959396,0.00135606,96607.0,96606.0,4.81980765]
[1739423959831,0.00235606,96607.0,96606.0,4.82580765]
[1739423960249,0.00135606,96607.0,96606.0,4.81780765]
[1739423960455,0.00235606,96607.0,96606.0,4.83280765]
[1739423960829,0.00235606,96607.0,96606.0,4.81780765]
[1739423961035,0.00135606,96607.0,96606.0,4.81780765]
[1739423961269,0.00235606,96607.0,96606.0,4.83280765]
[1739423961677,0.00035606,96607.0,96606.0,4.81180765]
[1739423962165,0.00035606,96607.0,96606.0,4.72839965]
[1739423962166,0.00235606,96607.0,96606.0,4.72839965]
[1739423962348,0.00235606,96607.0,96606.0,4.63446165]
[1739423962551,0.00335606,96607.0,96606.0,4.61166065]
[1739423962755,0.00335606,96607.0,96606.0,4.25036365]
[1739423963281,0.00235606,96607.0,96606.0,4.20949565]
[1739423963490,0.00235606,96607.0,96606.0,4.22449565]
[1739423963717,0.00335606,96607.0,96606.0,4.65159065]
[1739423964595,0.00335606,96607.0,96606.0,2.893818]
[1739423964784,0.15862406,96607.0,96606.0,2.793818]
[1739423965197,0.16364827,96607.0,96606.0,2.793818]
[1739423965411,0.16164827,96607.0,96606.0,2.7799245]
[1739423966367,0.16064827,96607.0,96606.0,2.7649245]
[1739423966593,0.16164827,96607.0,96606.0,2.7799245]
[1739423967064,0.16164827,96607.0,96606.0,2.7323245]
[1739423967279,0.16064827,96607.0,96606.0,2.7173245]
[1739423967730,0.16164827,96607.0,96606.0,2.7323245]
[1739423967927,0.16164827,96607.0,96606.0,2.6491245]
[1739423968141,0.16064827,96607.0,96606.0,2.6341245]
[1739423968373,0.16164827,96607.0,96606.0,2.6411245]
[1739423968558,0.15662406,96607.0,96606.0,2.6411245]
[1739423968967,0.15762406,96607.0,96606.0,2.6471245]
[1739423969839,0.16264447,96607.0,96606.0,2.6471245]
[1739423970041,0.16364447,96607.0,96606.0,2.6591245]
[1739423970906,0.16264447,96607.0,96606.0,2.6471245]
[1739423971055,0.16164447,96607.0,96606.0,0.5236665]
[1739423971269,0.16064447,96607.0,96606.0,3.7836995]
[1739423971454,0.16064447,96607.0,96606.0,3.7856995]
[1739423971657,0.15562406,96607.0,96606.0,3.7856995]
[1739423975184,0.15562406,96607.0,96606.0,3.4693245]
[1739423975314,0.15562406,96607.0,96606.0,3.3960005]
[1739423975522,0.00035606,96607.0,96606.0,3.6319695]
[1739423975902,0.00035606,96607.0,96606.0,3.6555065]
[1739423976114,0.00035606,96607.0,96606.0,5.0602165]
[1739423976886,0.00035606,96607.0,96606.0,4.9049475]
[1739423977079,0.00035606,96607.0,96606.0,5.0602165]
[1739423978692,0.00035606,96607.0,96606.0,4.9049475]
[1739423978932,0.00035606,96607.0,96606.0,5.0602165]
[1739423985229,0.00035606,96607.0,96606.0,5.15972015]
[1739423985631,0.00135606,96607.0,96606.0,5.16672015]
[1739423986193,0.00035606,96607.0,96606.0,5.36612015]
[1739423986394,0.00035606,96607.0,96606.0,5.3866423]
[1739423986801,0.00135606,96607.0,96606.0,5.4016423]
[1739423987227,0.00135606,96607.0,96606.0,5.4056423]
[1739423987460,0.00135606,96607.0,96606.0,5.4016423]
[1739423987658,0.00135606,96607.0,96606.0,5.4086423]
[1739423987806,0.00235606,96607.0,96606.0,5.4086423]
[1739423988203,0.00135606,96607.0,96606.0,5.3936423]
[1739423988410,0.00135606,96607.0,96606.0,5.4232573]
[1739423988627,0.00235606,96607.0,96606.0,5.4232573]
[1739423989669,0.00235606,96607.0,96606.0,5.5454153]
[1739423989871,0.00235606,96607.0,96606.0,5.4935683]
[1739423990103,0.00235606,96607.0,96606.0,5.3528783]
[1739423990519,0.00235606,96607.0,96606.0,5.1427573]
[1739423995289,0.00235606,96607.0,96606.0,2.9590213]
[1739423995486,0.00235606,96607.0,96606.0,5.7657033]
[1739423996416,0.00235606,96607.0,96606.0,5.7288433]
[1739423996617,0.00235606,96607.0,96606.0,5.5610663]
[1739423996996,0.00235606,96607.0,96606.0,5.5142403]
[1739423997836,0.00235606,96607.0,96606.0,5.4328873]
[1739423998613,0.00235606,96607.0,96606.0,5.4110993]
[1739424002108,0.00235606,96607.0,96606.0,5.43042624]
[1739424006145,0.00235606,96607.0,96606.0,2.97694824]
[1739424006346,0.00235606,96607.0,96606.0,5.74109024]
[1739424006528,0.00235606,96607.0,96606.0,5.19912024]
[1739424006745,0.00235606,96607.0,96606.0,5.11945424]
[1739424006999,0.00235606,96607.0,96606.0,5.00924624]
[1739424007201,0.00235606,96607.0,96606.0,2.97694824]
[1739424007437,0.00235606,96607.0,96606.0,5.14054624]
[1739424009405,0.00235606,96607.0,96606.0,2.97694824]
[1739424009609,0.00235606,96607.0,96606.0,5.80914824]
[1739424009785,0.00235606,96607.0,96606.0,5.58698124]
[1739424010548,0.00235606,96607.0,96606.0,2.97694824]
[1739424011357,0.00235606,96607.0,96606.0,5.56854824]
[1739424011703,0.00235606,96607.0,96606.0,4.97785944]
[1739424011913,0.00235606,96607.0,96606.0,2.46762244]
[1739424012319,0.00235606,96607.0,96606.0,5.00984444]
[1739424012525,0.00235606,96607.0,96606.0,4.80365244]
[1739424012779,0.00235606,96607.0,96606.0,4.90615609]
[1739424012999,0.00235606,96607.0,96606.0,4.84990809]
[1739424013594,0.00235606,96607.0,96606.0,4.81356109]
[1739424013843,0.00235606,96607.0,96606.0,4.75315809]
[1739424016799,0.00235606,96607.0,96606.0,2.57012609]
[1739424017515,0.00235606,96607.0,96606.0,5.83315909]
[1739424017755,0.00235606,96607.0,96606.0,5.59496609]
[1739424017998,0.00235606,96607.0,96606.0,2.57012609]
[1739424018742,0.00235606,96607.0,96606.0,5.83315909]
[1739424018982,0.00235606,96607.0,96606.0,5.68486409]
[1739424019436,0.00235606,96607.0,96606.0,5.65775109]
[1739424019700,0.00235606,96607.0,96606.0,2.57012609]
[1739424020153,0.00235606,96607.0,96606.0,5.83315909]
[1739424021375,0.00235606,96607.0,96606.0,5.73553209]
[1739424021840,0.00235606,96607.0,96606.0,5.46544609]
[1739424023631,0.00235606,96607.0,96606.0,5.44611915]
[1739424028102,0.00235606,96607.0,96606.0,5.29135915]
[1739424028329,0.00235606,96607.0,96606.0,5.31072935]
[1739424031977,0.00235606,96607.0,96606.0,3.5529567]
[1739424032187,0.00235606,96607.0,96606.0,3.0494927]
[1739424032188,0.23502406,96607.0,96606.0,3.0494927]
[1739424032390,0.00235606,96607.0,96606.0,3.0494927]
[1739424032593,0.00235606,96607.0,96606.0,3.0301225]
[1739424032932,0.00135606,96607.0,96606.0,3.0081225]
[1739424033135,0.00035606,96607.0,96606.0,3.0081225]
[1739424033353,0.00135606,96607.0,96606.0,3.0151225]
[1739424034485,0.00235606,96607.0,96606.0,3.0301225]
[1739424034692,0.15762406,96607.0,96606.0,3.0301225]
[1739424035628,0.15762406,96607.0,96606.0,2.9618825]
[1739424035858,0.15762406,96607.0,96606.0,2.7486665]
[1739424036062,0.1644411,96607.0,96606.0,2.7486665]
[1739424038887,0.2454411,96607.0,96606.0,2.7486665]
[1739424039695,0.2444411,96607.0,96606.0,2.7416665]
[1739424039900,0.2444411,96607.0,96606.0,2.7486665]
[1739424040069,0.2454411,96607.0,96606.0,2.7486665]
[1739424040286,0.2454411,96607.0,96606.0,2.7266665]
[1739424040508,0.2444411,96607.0,96606.0,2.7296665]
[1739424040849,0.2454411,96607.0,96606.0,2.7446665]
[1739424041131,0.2444411,96607.0,96606.0,2.7296665]
[1739424041428,0.49794475,96607.0,96606.0,2.2541285]
[1739424041581,0.54754475,96607.0,96606.0,2.2541285]
[1739424041989,0.54654475,96607.0,96606.0,2.2481285]
[1739424042190,0.54554475,96607.0,96606.0,2.2461285]
[1739424042390,0.54554475,96607.0,96606.0,2.2471285]
[1739424042798,0.56854475,96607.0,96606.0,2.2471285]
[1739424043833,0.56854475,96607.0,96606.0,2.2461285]
[1739424044036,0.56954475,96607.0,96606.0,2.2461285]
[1739424045466,0.56954475,96607.0,96606.0,0.5172665]
[1739424046009,0.89754475,96607.0,96606.0,0.5172665]
[1739424046641,0.89754475,96607.0,96606.0,2.4464905]
[1739424046778,0.89754475,96607.0,96606.0,2.5009055]
[1739424046979,0.89754475,96607.0,96606.0,2.4602945]
[1739424047185,0.89754475,96607.0,96606.0,2.3435835]
[1739424047612,0.89754475,96607.0,96606.0,2.3098915]
[1739424047817,0.89754475,96607.0,96606.0,2.2699805]
[1739424048432,0.87454475,96607.0,96606.0,2.2361975]
[1739424058295,0.74394475,96607.0,96606.0,2.2361975]
[1739424058583,0.4914411,96607.0,96606.0,2.2361975]
[1739424059764,0.4904411,96607.0,96606.0,2.2351975]
[1739424059966,0.4904411,96607.0,96606.0,2.2391975]
[1739424060313,0.4904411,96607.0,96606.0,2.2421975]
[1739424060453,0.4904411,96607.0,96606.0,2.3138975]
[1739424060659,0.4904411,96607.0,96606.0,2.3178975]
[1739424061732,0.48362406,96607.0,96606.0,2.3178975]
[1739424061932,0.49050514,96607.0,96606.0,2.3178975]
[1739424062133,0.49050514,96607.0,96606.0,2.26152694]
[1739424062979,0.59300879,96607.0,96606.0,2.26152694]
[1739424063552,0.74300879,96607.0,96606.0,2.2421975]
[1739424064699,0.74300879,96607.0,96606.0,2.2381975]
[1739424064932,0.74300879,96607.0,96606.0,2.2351975]
[1739424065180,0.74400879,96607.0,96606.0,2.2351975]
[1739424065735,0.64150514,96607.0,96606.0,2.2351975]
[1739424066212,0.49150514,96607.0,96606.0,2.2351975]
[1739424067251,0.49050514,96607.0,96606.0,2.2801975]
[1739424067462,0.49050514,96607.0,96606.0,2.29954355]
[1739424067663,0.00723714,96607.0,96606.0,2.45881255]
[1739424067883,0.00723714,96607.0,96606.0,4.03451255]
[1739424068196,0.00723714,96607.0,96606.0,4.03351255]
[1739424068197,0.00035606,96607.0,96606.0,4.03351255]
[1739424068621,0.00035606,96607.0,96606.0,4.03051255]
[1739424068820,0.00135606,96607.0,96606.0,4.03651255]
[1739424069452,0.00235606,96607.0,96606.0,2.32558155]
[1739424069653,0.00235606,96607.0,96606.0,5.58861455]
[1739424070054,0.00135606,96607.0,96606.0,5.58061455]
[1739424070285,0.00235606,96607.0,96606.0,5.59261455]
[1739424074168,0.00235606,96607.0,96606.0,5.6951182]
[1739424076128,0.00135606,96607.0,96606.0,5.6891182]
[1739424076337,0.00035606,96607.0,96606.0,5.6771182]
[1739424076534,0.00135606,96607.0,96606.0,5.6921182]
[1739424076874,0.00135606,96607.0,96606.0,5.8421182]
[1739424077079,0.00035606,96607.0,96606.0,5.8271182]
[1739424077378,0.00135606,96607.0,96606.0,5.8421182]
[1739424077706,0.00135606,96607.0,96606.0,5.6119872]
[1739424077909,0.00135606,96607.0,96606.0,5.6049872]
[1739424078124,0.155218,96638.0,96637.0,0.1]
[1739424078359,0.328,96659.0,96647.0,0.1]
[1739424078559,0.206921,96655.0,96648.0,3.263033]
[1739424078832,0.14397945,96660.0,96653.0,0.1]
[1739424079170,0.155191,96655.0,96654.0,3.263033]
[1739424079571,0.155191,96655.0,96654.0,3.030443]
[1739424079993,0.00035648,96657.0,96654.0,3.030443]
[1739424079994,0.15554548,96657.0,96654.0,3.052952]
[1739424080193,0.15554448,96657.0,96655.0,3.263033]
[1739424081376,0.155189,96656.0,96655.0,3.263033]
[1739424081582,0.00035648,96657.0,96655.0,3.263033]
[1739424081989,0.155189,96656.0,96655.0,3.263033]
[1739424082205,0.155189,96656.0,96655.0,3.267033]
[1739424082538,0.155189,96656.0,96655.0,3.263033]
[1739424082749,0.00035648,96657.0,96656.0,0.155189]
[1739424082956,0.00035648,96657.0,96656.0,3.41925637]
[1739424083159,0.00035648,96657.0,96656.0,4.788752]
[1739424083984,0.00035648,96657.0,96656.0,4.81298065]
[1739424084187,0.00035648,96657.0,96656.0,4.88998065]
[1739424084318,0.00035648,96657.0,96656.0,4.89898065]
[1739424084526,0.00035648,96657.0,96656.0,5.5201843]
[1739424085111,0.00035648,96657.0,96656.0,5.7156843]
[1739424085679,0.00035648,96657.0,96656.0,5.7016843]
[1739424086055,0.15,96707.0,96682.0,0.1802]
[1739424086261,0.01037411,96693.0,96692.0,0.2]
[1739424086475,0.01037411,96693.0,96692.0,0.21032284]
[1739424086645,0.50035643,96700.0,96692.0,0.21032284]
[1739424086646,0.70718143,96700.0,96692.0,4.97335584]
[1739424086858,0.70718143,96700.0,96693.0,3.01636]
[1739424087006,0.155128,96694.0,96693.0,2.812168]
[1739424087212,0.155128,96694.0,96693.0,2.432522]
[1739424087764,0.155122,96698.0,96693.0,2.432522]
[1739424088093,0.155127,96695.0,96693.0,2.432522]
[1739424089306,0.155127,96695.0,96693.0,2.441522]
[1739424089644,0.155127,96695.0,96694.0,3.263033]
[1739424089929,0.155127,96695.0,96692.0,0.11032284]
[1739424089930,0.00721147,96694.0,96693.0,3.271033]
[1739424090146,0.155127,96695.0,96694.0,2.840406]
[1739424090366,0.155126,96695.0,96694.0,2.840406]
[1739424090768,0.155126,96695.0,96694.0,2.847406]
[1739424090962,0.155126,96695.0,96694.0,2.403413]
[1739424091449,0.15534966,96695.0,96694.0,2.403413]
[1739424091686,0.15534966,96695.0,96694.0,2.026958]
[1739424091687,0.25785331,96695.0,96694.0,2.026958]
[1739424091894,0.40785331,96695.0,96694.0,2.026958]
[1739424092224,0.40785331,96695.0,96694.0,2.019958]
[1739424092430,0.15,96694.0,96693.0,2.852373]
[1739424092630,0.60350365,96694.0,96693.0,1.801185]
[1739424092867,0.60350365,96694.0,96693.0,1.672372]
[1739424093011,0.60350365,96694.0,96693.0,1.631377]
[1739424095487,0.58050365,96694.0,96693.0,1.631377]
[1739424096380,0.00022366,96695.0,96693.0,1.631377]
[1739424096537,0.15535066,96695.0,96693.0,1.631377]
[1739424096942,0.00687103,96694.0,96693.0,1.631377]
[1739424098403,0.16199903,96694.0,96693.0,1.642377]
[1739424098579,0.16199903,96694.0,96693.0,1.638377]
[1739424098801,0.16199903,96694.0,96693.0,1.631377]
[1739424099019,0.00687103,96694.0,96693.0,1.635377]
[1739424099245,0.00687103,96694.0,96693.0,1.641377]
[1739424099733,0.16199903,96694.0,96693.0,1.641377]
[1739424099967,0.00687103,96694.0,96693.0,0.34223365]
[1739424100212,0.00687103,96694.0,96693.0,0.39393365]
[1739424100757,0.00687103,96694.0,96693.0,0.41314433]
[1739424100990,0.00687103,96694.0,96693.0,1.90914433]
[1739424101203,0.00022366,96695.0,96694.0,0.155128]
[1739424101416,0.00022366,96695.0,96693.0,0.24951068]
[1739424101631,0.00022366,96695.0,96693.0,0.40963968]
[1739424101818,0.00689163,96694.0,96693.0,0.2353]
[1739424102017,0.00689163,96694.0,96693.0,0.2423]
[1739424102212,0.00689163,96694.0,96693.0,0.2263]
[1739424102419,0.00022366,96695.0,96694.0,0.16223637]
[1739424102841,0.00022366,96695.0,96694.0,0.155128]
[1739424104108,0.00022366,96695.0,96693.0,0.2483]
[1739424104336,0.00022366,96695.0,96694.0,0.155128]
[1739424104851,0.00680235,96695.0,96694.0,1.675128]
[1739424105049,0.00680235,96695.0,96694.0,1.668128]
[1739424105280,0.00680235,96695.0,96694.0,1.655128]
[1739424105679,0.00680235,96695.0,96694.0,1.665128]
[1739424106040,0.00680235,96695.0,96694.0,1.671128]
[1739424106638,0.00680235,96695.0,96694.0,1.516]
[1739424107038,0.16192835,96695.0,96694.0,1.516]
[1739424107239,0.16192835,96695.0,96694.0,4.63629]
[1739424107505,0.16192835,96695.0,96694.0,4.154981]
[1739424107711,0.15534966,96695.0,96694.0,4.154981]
[1739424107888,0.16192835,96695.0,96694.0,4.148981]
[1739424108090,0.16192835,96695.0,96694.0,4.154981]
[1739424108288,0.16192835,96695.0,96694.0,4.164981]
[1739424108517,0.16192835,96695.0,96694.0,2.658981]
[1739424108694,0.16192835,96695.0,96694.0,2.664981]
[1739424108910,0.16192835,96695.0,96694.0,2.654981]
[1739424109149,0.16192835,96695.0,96694.0,2.663981]
[1739424109516,0.16192835,96695.0,96694.0,2.657981]
[1739424109718,0.16192835,96695.0,96694.0,2.662981]
[1739424110384,0.16192835,96695.0,96694.0,2.653981]
[1739424110799,0.16192835,96695.0,96694.0,2.660981]
[1739424111006,0.00680235,96695.0,96694.0,2.660981]
[1739424111608,0.00022366,96695.0,96694.0,2.816109]
[1739424113943,0.00022366,96695.0,96694.0,2.660981]
[1739424114293,0.0068143,96695.0,96694.0,3.1781774]
[1739424114509,0.0068143,96695.0,96694.0,4.6781774]
[1739424114710,0.00022366,96695.0,96694.0,4.9613054]
[1739424114893,0.00022366,96695.0,96694.0,2.3123244]
[1739424115929,0.00022366,96695.0,96694.0,2.41482805]
[1739424116678,0.00022366,96695.0,96694.0,2.40782805]
[1739424116875,0.00022366,96695.0,96694.0,2.42082805]
[1739424117408,0.00022366,96695.0,96694.0,2.40782805]
[1739424117614,0.00022366,96695.0,96694.0,2.41303807]
[1739424117758,0.00022366,96695.0,96694.0,2.43503807]
[1739424118399,0.00022366,96695.0,96694.0,2.42482805]
[1739424120177,0.00022366,96695.0,96694.0,2.4460087]
[1739424126052,0.00022366,96695.0,96694.0,2.52482805]
[1739424126177,0.00022366,96695.0,96694.0,5.52009505]
[1739424126536,0.00022366,96695.0,96694.0,5.44375705]
[1739424126750,0.00022366,96695.0,96694.0,5.41628105]
[1739424126927,0.15534966,96695.0,96694.0,4.8574154]
[1739424127132,0.15534966,96695.0,96694.0,4.7809554]
[1739424127913,0.15534966,96695.0,96694.0,4.7690284]
[1739424128144,0.16195608,96695.0,96694.0,4.7620284]
[1739424128320,0.15534966,96695.0,96694.0,4.5933524]
[1739424128697,0.15534966,96695.0,96694.0,3.0933524]
[1739424128904,0.15534966,96695.0,96694.0,3.0983524]
[1739424129112,0.15534966,96695.0,96694.0,2.9833524]
[1739424129346,0.15534966,96695.0,96694.0,2.9103474]
[1739424129722,0.15534966,96695.0,96694.0,2.5509654]
[1739424129995,0.15534966,96695.0,96694.0,2.4974354]
[1739424130458,0.15534966,96695.0,96694.0,2.4914354]
[1739424130675,0.15534966,96695.0,96694.0,2.4924354]
[1739424131144,0.15534966,96695.0,96694.0,2.4874354]
[1739424131551,0.15534966,96695.0,96694.0,0.5211964]
[1739424131992,0.16195037,96695.0,96694.0,3.4661094]
[1739424132237,0.15534966,96695.0,96694.0,0.5181964]
[1739424132489,0.40785331,96695.0,96694.0,2.8686504]
[1739424132723,0.48695331,96695.0,96694.0,2.9686294]
[1739424132960,0.49355402,96695.0,96694.0,2.9656294]
[1739424133213,0.16295037,96695.0,96694.0,2.9656294]
[1739424133708,0.15634966,96695.0,96694.0,2.9656294]
[1739424133956,0.00122366,96695.0,96694.0,2.9656294]
[1739424134170,0.00022366,96695.0,96694.0,5.6431574]
[1739424134483,0.00022366,96695.0,96694.0,5.4436404]
[1739424134709,0.00022366,96695.0,96694.0,4.9107844]
[1739424134958,0.00022366,96695.0,96694.0,4.9057844]
[1739424135408,0.15534966,96695.0,96694.0,5.2673944]
[1739424135632,0.15534966,96695.0,96694.0,5.2723944]
[1739424136189,0.15534966,96695.0,96694.0,5.1103104]
[1739424136448,0.15534966,96695.0,96694.0,5.1173104]
[1739424136685,0.15534966,96695.0,96694.0,4.7704604]
[1739424136935,0.15534966,96695.0,96694.0,3.2634604]
[1739424137184,0.15534966,96695.0,96694.0,3.2694604]
[1739424137424,0.15534966,96695.0,96694.0,4.7694604]
[1739424138230,0.15534966,96695.0,96694.0,4.7634604]
[1739424138381,0.15534966,96695.0,96694.0,3.2654604]
[1739424138802,0.15534966,96695.0,96694.0,3.2634604]
[1739424139001,0.25885331,96695.0,96694.0,2.6522704]
[1739424142887,0.25885331,96695.0,96694.0,4.1522704]
[1739424143083,0.25885331,96695.0,96694.0,2.6522704]
[1739424143916,0.25885331,96695.0,96694.0,2.5582574]
[1739424144072,0.40885331,96695.0,96694.0,2.5459334]
[1739424144269,0.51632412,96695.0,96694.0,2.1531894]
[1739424144718,0.84432412,96695.0,96694.0,2.1531894]
[1739424144891,0.84432412,96695.0,96694.0,1.9197054]
[1739424145637,0.84332412,96695.0,96694.0,1.9197054]
[1739424146018,0.84532412,96695.0,96694.0,1.9207054]
[1739424146428,0.84332412,96695.0,96694.0,1.9197054]
[1739424147906,0.85032412,96695.0,96694.0,1.9207054]
[1739424149254,0.77242412,96695.0,96694.0,1.9207054]
[1739424149842,0.74942412,96695.0,96694.0,1.9207054]
[1739424150212,0.74942412,96695.0,96694.0,3.4207054]
[1739424150824,0.74342412,96695.0,96694.0,1.9197054]
[1739424151027,0.74942412,96695.0,96694.0,1.9207054]
[1739424151437,0.74842412,96695.0,96694.0,1.9207054]
[1739424151644,0.74342412,96695.0,96694.0,1.9197054]
[1739424151920,0.74842412,96695.0,96694.0,1.9207054]
[1739424152469,0.74342412,96695.0,96694.0,1.9197054]
[1739424152823,0.75042412,96695.0,96694.0,1.9207054]
[1739424153057,0.74942412,96695.0,96694.0,1.9207054]
[1739424153466,0.75042412,96695.0,96694.0,1.9207054]
[1739424154026,0.74442412,96695.0,96694.0,1.9197054]
[1739424154226,0.75042412,96695.0,96694.0,1.9207054]
[1739424165989,0.74842412,96695.0,96694.0,1.9207054]
[1739424166223,0.74242412,96695.0,96694.0,1.9197054]
[1739424166424,0.74842412,96695.0,96694.0,1.9207054]
[1739424166767,0.74942412,96695.0,96694.0,1.9207054]
[1739424169208,0.74942412,96695.0,96694.0,0.4561444]
[1739424169412,0.74942412,96695.0,96694.0,3.7191774]
[1739424170351,0.74942412,96695.0,96694.0,3.4232274]
[1739424170487,0.74942412,96695.0,96694.0,3.2552554]
[1739424170703,0.74942412,96695.0,96694.0,3.1475304]
[1739424174888,0.74842412,96695.0,96694.0,3.1475304]
[1739424175296,0.74342412,96695.0,96694.0,3.1465304]
[1739424175654,0.74942412,96695.0,96694.0,3.1475304]
[1739424176062,0.74242412,96695.0,96694.0,3.1465304]
[1739424176259,0.74842412,96695.0,96694.0,3.1475304]
[1739424176827,0.74242412,96695.0,96694.0,3.1465304]
[1739424177028,0.74842412,96695.0,96694.0,3.1475304]
[1739424177606,0.74942412,96695.0,96694.0,3.1475304]
[1739424177793,0.74842412,96695.0,96694.0,3.1475304]
[1739424177985,0.74942412,96695.0,96694.0,3.1475304]
[1739424180257,0.74942412,96695.0,96694.0,2.9647334]
[1739424180606,0.74942412,96695.0,96694.0,2.7078144]
[1739424180743,0.74942412,96695.0,96694.0,2.6523914]
[1739424180952,0.77242412,96695.0,96694.0,1.3448484]
[1739424181573,0.74942412,96695.0,96694.0,1.3448484]
[1739424182613,0.74342412,96695.0,96694.0,1.3438484]
[1739424182827,0.74942412,96695.0,96694.0,1.3448484]
[1739424183851,0.74842412,96695.0,96694.0,1.3448484]
[1739424184076,0.74942412,96695.0,96694.0,1.3448484]
[1739424184475,0.59942412,96695.0,96694.0,1.3448484]
[1739424184746,0.59942412,96695.0,96694.0,1.3929484]
[1739424185128,0.74342412,96695.0,96694.0,1.3919484]
[1739424185428,0.74242412,96695.0,96694.0,1.3919484]
[1739424185631,0.74842412,96695.0,96694.0,1.3929484]
[1739424185991,0.74942412,96695.0,96694.0,1.3929484]
[1739424187869,0.49692047,96695.0,96694.0,1.3929484]
[1739424188838,0.49092047,96695.0,96694.0,1.3919484]
[1739424189248,0.49592047,96695.0,96694.0,1.3929484]
[1739424189897,0.16792047,96695.0,96694.0,1.4716484]
[1739424190634,0.16192047,96695.0,96694.0,1.4706484]
[1739424190848,0.16192047,96695.0,96694.0,2.9706484]
[1739424191056,0.15634966,96695.0,96694.0,2.9716484]
[1739424191495,0.15634966,96695.0,96694.0,2.9706484]
[1739424191694,0.15634966,96695.0,96694.0,2.9746484]
[1739424192597,0.15634966,96695.0,96694.0,3.1297764]
[1739424192598,0.00122366,96695.0,96694.0,3.1297764]
[1739424192975,0.00845886,96695.0,96694.0,3.1297764]
[1739424193183,0.00122366,96695.0,96694.0,1.9825244]
[1739424193403,0.15634966,96695.0,96694.0,1.9825244]
[1739424193834,0.00122366,96695.0,96694.0,1.9825244]
[1739424193982,0.00122366,96695.0,96694.0,2.1376524]
[1739424194516,0.00122366,96695.0,96694.0,5.50318905]
[1739424194713,0.00122366,96695.0,96694.0,2.24015605]
[1739424195545,0.00022366,96695.0,96694.0,2.23615605]
[1739424195930,0.00022366,96695.0,96694.0,2.24215605]
[1739424196879,0.00022366,96695.0,96694.0,2.24915605]
[1739424209693,0.023,96750.0,96721.0,0.01]
[1739424209968,0.155083,96722.0,96721.0,0.02032284]
[1739424210373,0.00599195,96722.0,96721.0,3.28335584]
[1739424210590,0.206768,96727.0,96721.0,3.96577584]
[1739424210802,0.155078,96725.0,96722.0,3.263033]
[1739424211039,0.155076,96727.0,96722.0,3.263033]
[1739424211330,0.2171108,96729.0,96722.0,3.263033]
[1739424211546,0.10250365,96728.0,96722.0,3.263033]
[1739424211660,0.10250365,96728.0,96722.0,3.945453]
[1739424211878,0.01019516,96729.0,96724.0,0.01]
[1739424212083,0.30145461,96732.0,96725.0,3.263033]
[1739424212280,0.30145461,96732.0,96729.0,0.01]
[1739424212527,0.15507,96730.0,96729.0,0.01]
[1739424212946,0.16106452,96730.0,96729.0,0.01]
[1739424213110,0.16106452,96730.0,96729.0,3.273033]
[1739424213111,0.00599452,96730.0,96729.0,3.273033]
[1739424213316,0.1654704,96730.0,96729.0,3.273033]
[1739424213561,0.1654704,96730.0,96729.0,3.274033]
[1739424213776,0.1654704,96730.0,96729.0,4.617015]
[1739424213952,0.1684704,96730.0,96729.0,4.617015]
[1739424214559,0.1684704,96730.0,96729.0,3.117015]
[1739424215553,0.1684704,96730.0,96729.0,3.116015]
[1739424215793,0.1684704,96730.0,96729.0,3.117015]
[1739424216497,0.00290831,96730.0,96729.0,3.127015]
[1739424219097,0.00290831,96730.0,96729.0,3.414487]
[1739424219340,0.00290831,96730.0,96729.0,4.096867]
[1739424219793,0.000441,96732.0,96731.0,0.265069]
[1739424219986,0.000441,96732.0,96731.0,4.31399484]
[1739424221569,0.000441,96732.0,96731.0,4.15892584]
[1739424221741,0.000441,96732.0,96731.0,5.65892584]
[1739424221951,0.000441,96732.0,96731.0,2.55496184]